bitfinex-derivatives/quotes_SOLF0:USTF0_20260226
["timestamp","ask_amount","ask_price","bid_price","bid_amount"]
[1772083673255,6.93682989,87.526,87.467,10.2891]
[1772083674558,6.93110692,87.543,87.46,8.07286793]
[1772083674958,6.93110692,87.543,87.483,10.2873]
[1772083675959,6.93110692,87.539,87.483,10.2873]
[1772083676257,6.93110692,87.539,87.47,10.2888]
[1772083676853,10.2812,87.536,87.47,10.2888]
[1772083677054,6.92632313,87.535,87.47,10.2888]
[1772083678755,6.92601463,87.528,87.46,10.29]
[1772083679149,6.92601463,87.528,87.45,8.07286793]
[1772083679357,6.92601463,87.528,87.469,10.2889]
[1772083680655,6.94469341,87.526,87.458,10.2902]
[1772083681258,6.94469341,87.526,87.476,10.2881]
[1772083682059,6.94469341,87.54,87.476,10.2881]
[1772083682456,6.92341046,87.535,87.466,10.2893]
[1772083683956,6.92341046,87.53,87.466,10.2893]
[1772083684964,6.94263166,87.528,87.466,10.2893]
[1772083685563,6.94263166,87.528,87.475,10.2882]
[1772083686961,6.94263166,87.528,87.44,8.05940953]
[1772083686962,6.94263166,87.528,87.484,10.2872]
[1772083687563,6.94263166,87.528,87.474,10.2883]
[1772083688567,3.0081198,87.52,87.474,10.2883]
[1772083688971,9.95740548,87.52,87.474,10.2883]
[1772083689570,6.94928568,87.519,87.463,10.2896]
[1772083690070,8.00926197,87.563,87.412,312.94646081]
[1772083690071,6.94928568,87.499,87.43,3.0081198]
[1772083690271,6.94928568,87.499,87.45,3.0081198]
[1772083690464,3.0081198,87.52,87.46,3.0081198]
[1772083690665,3.0081198,87.54,87.48,3.0081198]
[1772083691071,6.9504525,87.546,87.495,10.2859]
[1772083694270,6.94934616,87.539,87.495,10.2859]
[1772083694571,6.95215869,87.591,87.53,3.0081198]
[1772083694777,6.95215869,87.589,87.53,3.0081198]
[1772083695073,6.95215869,87.589,87.54,3.0081198]
[1772083695266,3.0081198,87.58,87.484,21.2741781]
[1772083695575,6.95215869,87.579,87.52,3.0081198]
[1772083695771,3.0081198,87.57,87.52,3.0081198]
[1772083695971,3.0081198,87.57,87.51,3.0081198]
[1772083697075,3.0081198,87.57,87.513,10.2838]
[1772083698365,3.0081198,87.57,87.51,3.0081198]
[1772083698570,3.0081198,87.57,87.523,10.2826]
[1772083699177,6.95215869,87.579,87.523,10.2826]
[1772083701177,3.0081198,87.57,87.523,10.2826]
[1772083701377,6.95215869,87.579,87.523,10.2826]
[1772083702775,7.99785826,87.636,87.463,34.37]
[1772083702776,6.93512469,87.569,87.508,10.2844]
[1772083702978,6.93512469,87.569,87.459,160.0686]
[1772083703175,3.0081198,87.56,87.5,3.0081198]
[1772083703575,6.93512469,87.569,87.512,10.2839]
[1772083704174,3.0081198,87.56,87.512,10.2839]
[1772083704374,6.95142463,87.559,87.501,10.2851]
[1772083704575,3.0081198,87.55,87.501,10.2851]
[1772083706275,6.95142463,87.549,87.501,10.2851]
[1772083708882,6.95142463,87.549,87.5,3.0081198]
[1772083709181,3.0081198,87.56,87.5,3.0081198]
[1772083710990,3.0081198,87.56,87.508,10.2843]
[1772083713192,6.80999791,87.559,87.508,10.2843]
[1772083713991,3.0081198,87.55,87.508,10.2843]
[1772083714194,9.81811771,87.55,87.508,10.2843]
[1772083715689,6.80999791,87.55,87.508,10.2843]
[1772083716000,3.0081198,87.56,87.517,10.2833]
[1772083716196,6.76904851,87.559,87.477,21.2741781]
[1772083716395,6.76904851,87.559,87.5,3.0081198]
[1772083717999,6.76904851,87.559,87.515,10.2836]
[1772083719699,6.76904851,87.559,87.505,10.2847]
[1772083721390,6.76904851,87.559,87.5,3.0081198]
[1772083721391,6.76904851,87.559,87.513,10.2837]
[1772083723596,10.30111139,87.619,87.456,160.0747]
[1772083723597,6.61182691,87.575,87.522,10.2827]
[1772083723797,6.61182691,87.575,87.489,21.2741781]
[1772083724103,3.0081198,87.56,87.506,10.2846]
[1772083724397,6.61182691,87.559,87.506,10.2846]
[1772083724604,3.0081198,87.55,87.496,10.2858]
[1772083724897,6.61275613,87.549,87.496,10.2858]
[1772083725699,6.61275613,87.549,87.5,3.0081198]
[1772083726103,6.61275613,87.539,87.486,10.2869]
[1772083726601,6.62461524,87.529,87.47,3.0081198]
[1772083727701,6.62461524,87.529,87.481,10.2875]
[1772083728000,3.0081198,87.54,87.481,10.2875]
[1772083728201,9.63273504,87.54,87.481,10.2875]
[1772083728398,6.53097318,87.539,87.481,10.2875]
[1772083728899,6.53097318,87.539,87.49,3.0081198]
[1772083729304,6.53097318,87.539,87.49,13.2946198]
[1772083733005,6.53097318,87.539,87.49,3.0081198]
[1772083733503,3.0081198,87.55,87.49,3.0081198]
[1772083733704,3.0081198,87.55,87.442,20.5842]
[1772083733705,6.54355149,87.549,87.472,21.2741781]
[1772083733906,6.54355149,87.549,87.49,3.0081198]
[1772083735002,6.54355149,87.549,87.499,10.2854]
[1772083736005,6.54355149,87.549,87.49,3.0081198]
[1772083736206,3.0081198,87.54,87.49,10.2865]
[1772083736407,6.54064647,87.539,87.49,10.2865]
[1772083737210,6.53678682,87.529,87.477,21.2741781]
[1772083737405,6.53678682,87.529,87.47,3.0081198]
[1772083738909,6.53678682,87.529,87.473,10.2884]
[1772083740913,6.56230491,87.519,87.473,10.2884]
[1772083744218,6.57436968,87.532,87.48,3.0081198]
[1772083744420,6.58837321,87.542,87.49,3.0081198]
[1772083744620,6.58837321,87.559,87.5,3.0081198]
[1772083745313,3.00644907,87.55,87.5,3.00644907]
[1772083746008,3.00644907,87.55,87.506,10.2846]
[1772083747215,3.00644907,87.55,87.5,3.00644907]
[1772083747416,6.57671818,87.549,87.496,10.2857]
[1772083752120,6.57671818,87.549,87.505,10.2847]
[1772083754020,3.00644907,87.56,87.513,10.2837]
[1772083754324,6.56545268,87.564,87.513,10.2837]
[1772083755521,6.56415875,87.559,87.513,10.2837]
[1772083758917,6.56415875,87.559,87.521,10.2828]
[1772083759115,6.56415875,87.559,87.51,3.00644907]
[1772083759316,6.63036789,87.549,87.49,3.00644907]
[1772083760022,6.63036789,87.549,87.501,10.2851]
[1772083760226,8.04124138,87.606,87.441,20.5845]
[1772083760227,6.63036789,87.539,87.48,3.00644907]
[1772083762127,6.63036789,87.539,87.492,10.2863]
[1772083767429,6.63036789,87.539,87.501,10.2852]
[1772083771135,10.2793,87.552,87.501,10.2852]
[1772083771336,6.63986691,87.571,87.441,54.8745]
[1772083771337,3.00644907,87.56,87.509,10.2842]
[1772083771530,9.64631598,87.56,87.509,10.2842]
[1772083771733,6.63986691,87.559,87.509,10.2842]
[1772083772234,6.63986691,87.557,87.509,10.2842]
[1772083772839,6.64306894,87.549,87.5,3.00644907]
[1772083773037,6.64306894,87.549,87.499,10.2854]
[1772083776042,6.64129619,87.547,87.499,10.2854]
[1772083780247,6.64129619,87.547,87.49,3.00644907]
[1772083780248,6.64129619,87.547,87.505,10.2847]
[1772083783841,6.64129619,87.547,87.495,10.2858]
[1772083784652,6.65551021,87.545,87.495,10.2858]
[1772083785354,6.65551021,87.539,87.486,10.2869]
[1772083786255,6.65551021,87.539,87.494,10.286]
[1772083787955,6.66752877,87.57,87.512,10.2839]
[1772083788252,6.66752877,87.569,87.512,10.2839]
[1772083788555,6.66694459,87.566,87.512,10.2839]
[1772083792750,10.30111139,87.602,87.499,21.2741781]
[1772083792751,6.68881646,87.559,87.503,10.2849]
[1772083792956,6.68881646,87.559,87.476,28.29991067]
[1772083792957,6.68881646,87.549,87.49,3.00644907]
[1772083793459,6.68881646,87.548,87.494,10.286]
[1772083794551,6.68736574,87.536,87.484,21.2741781]
[1772083794756,6.68736574,87.536,87.48,3.00644907]
[1772083794757,6.68736574,87.529,87.477,21.2741781]
[1772083794956,6.68736574,87.519,87.47,21.2741781]
[1772083795357,6.68736574,87.519,87.469,21.2741781]
[1772083795654,6.68736574,87.519,87.47,13.29534907]
[1772083796154,6.68736574,87.519,87.47,34.56952717]
[1772083796344,10.2821,87.528,87.47,34.56952717]
[1772083796345,6.68736574,87.527,87.47,13.29534907]
[1772083797757,10.30111139,87.575,87.47,10.2889]
[1772083797758,3.00644907,87.52,87.47,10.2889]
[1772083797959,6.74902635,87.519,87.47,10.2889]
[1772083798558,6.74902635,87.519,87.464,21.2741781]
[1772083798756,6.74902635,87.519,87.46,3.00644907]
[1772083799156,6.74902635,87.519,87.465,10.2895]
[1772083799861,6.74902635,87.519,87.472,10.2886]
[1772083800260,3.00644907,87.53,87.472,10.2886]
[1772083800852,6.78443396,87.529,87.472,10.2886]
[1772083801959,6.78443396,87.527,87.47,3.00644907]
[1772083802159,6.78443396,87.509,87.452,10.291]
[1772083802361,6.78443396,87.509,87.445,21.2741781]
[1772083802362,6.78443396,87.499,87.443,21.2741781]
[1772083802562,6.80173129,87.489,87.43,3.00644907]
[1772083802862,6.80173129,87.486,87.432,10.2933]
[1772083805864,3.01095973,87.48,87.432,10.2933]
[1772083806363,6.80173129,87.486,87.432,10.2933]
[1772083807260,6.80173129,87.486,87.43,3.01095973]
[1772083807261,6.98015466,87.479,87.43,3.01095973]
[1772083808061,6.98015466,87.479,87.422,10.2945]
[1772083808260,9.99111439,87.47,87.41,3.01095973]
[1772083808456,6.98015466,87.47,87.41,3.01095973]
[1772083808861,6.98015466,87.47,87.419,10.2948]
[1772083809063,6.99849895,87.484,87.43,3.01095973]
[1772083809258,6.99849895,87.519,87.47,3.01095973]
[1772083809655,6.99849895,87.519,87.471,10.2887]
[1772083810564,6.99849895,87.519,87.46,10.29]
[1772083810763,7.01854795,87.509,87.46,10.29]
[1772083810961,7.01854795,87.509,87.46,13.30095973]
[1772083811864,3.01095973,87.52,87.46,13.30095973]
[1772083812066,10.02950768,87.52,87.46,13.30095973]
[1772083812265,7.01854795,87.519,87.46,13.30095973]
[1772083812965,7.13403503,87.509,87.45,3.01095973]
[1772083814270,7.13403503,87.489,87.43,3.01095973]
[1772083815072,7.13403503,87.489,87.443,10.292]
[1772083815673,7.13403503,87.489,87.432,10.2933]
[1772083817170,7.13403503,87.489,87.441,10.2922]
[1772083817672,34.29,87.552,87.45,3.01095973]
[1772083817673,10.2847,87.506,87.45,3.01095973]
[1772083817867,7.12080351,87.506,87.451,10.2911]
[1772083818570,7.12080351,87.506,87.46,13.30095973]
[1772083819870,7.12080351,87.506,87.46,10.29]
[1772083823268,7.12080351,87.506,87.46,13.30095973]
[1772083825367,10.11768376,87.52,87.46,13.30095973]
[1772083825569,7.10672403,87.517,87.46,13.30095973]
[1772083826079,7.10672403,87.509,87.46,13.30095973]
[1772083829779,7.10672403,87.509,87.468,10.289]
[1772083830183,3.01095973,87.52,87.46,3.01095973]
[1772083831379,7.09402948,87.52,87.47,3.01095973]
[1772083831686,7.09402948,87.529,87.47,3.01095973]
[1772083831981,7.09402948,87.529,87.475,10.2883]
[1772083833284,7.08232544,87.519,87.475,10.2883]
[1772083836779,7.08232544,87.519,87.485,10.2871]
[1772083838681,3.01095973,87.53,87.485,10.2871]
[1772083840586,6.97623706,87.529,87.485,10.2871]
[1772083840988,6.97623706,87.529,87.494,10.2861]
[1772083841785,3.01095973,87.54,87.494,10.2861]
[1772083841986,3.01095973,87.55,87.504,10.2848]
[1772083842191,6.97623706,87.556,87.504,10.2848]
[1772083844586,7.04965936,87.569,87.51,3.01095973]
[1772083844889,7.04965936,87.559,87.5,3.01095973]
[1772083845688,1.98824195,87.603,87.49,3.01095973]
[1772083845689,7.04965936,87.549,87.49,3.01095973]
[1772083846387,3.01095973,87.54,87.49,3.01095973]
[1772083846593,7.05170709,87.539,87.493,10.2861]
[1772083846788,7.05170709,87.539,87.48,3.01095973]
[1772083847985,7.05170709,87.536,87.483,10.2872]
[1772083851794,7.05170709,87.536,87.492,10.2862]
[1772083852093,3.01095973,87.55,87.492,10.2862]
[1772083852299,7.04879924,87.569,87.51,3.01095973]
[1772083853103,7.04879924,87.569,87.514,10.2836]
[1772083853703,7.04879924,87.569,87.52,3.01095973]
[1772083854097,7.04879924,87.569,87.523,10.2826]
[1772083854301,7.05016683,87.579,87.523,10.2826]
[1772083856004,7.00611605,87.569,87.513,10.2838]
[1772083857395,7.01519546,87.559,87.503,10.2849]
[1772083859009,7.01519546,87.559,87.512,10.2839]
[1772083860908,7.02792677,87.549,87.451,34.29]
[1772083861107,7.02792677,87.539,87.48,3.01095973]
[1772083861902,7.02792677,87.538,87.48,3.01095973]
[1772083862109,7.02792677,87.529,87.47,3.01095973]
[1772083862300,7.02792677,87.529,87.43,20.5871]
[1772083862301,7.02792677,87.529,87.48,3.01095973]
[1772083862702,7.02792677,87.529,87.473,10.2884]
[1772083862907,3.01095973,87.52,87.47,3.01095973]
[1772083863101,7.03519083,87.519,87.47,3.01095973]
[1772083863507,7.03519083,87.519,87.43,20.5871]
[1772083863508,7.03519083,87.519,87.46,3.01095973]
[1772083863906,7.03519083,87.519,87.462,10.2898]
[1772083864812,7.02917572,87.533,87.48,3.01095973]
[1772083865307,7.02917572,87.533,87.48,3.00781807]
[1772083866103,10.03699379,87.53,87.48,3.00781807]
[1772083866405,7.02917572,87.529,87.48,3.00781807]
[1772083867005,7.02917572,87.529,87.482,10.2875]
[1772083872823,6.99522594,87.524,87.452,21.27437119]
[1772083873120,6.99522594,87.509,87.45,3.00781807]
[1772083874918,167.91656695,87.57,87.403,20.5934]
[1772083874919,6.98949893,87.499,87.44,3.00781807]
[1772083875320,6.98949893,87.499,87.444,10.2919]
[1772083876517,3.00781807,87.49,87.444,10.2919]
[1772083877115,6.98949893,87.499,87.444,10.2919]
[1772083877712,170.19927382,87.561,87.404,21.27437119]
[1772083877713,6.9910581,87.479,87.433,10.2931]
[1772083877920,6.9910581,87.469,87.41,3.00781807]
[1772083878320,6.9910581,87.459,87.4,3.00781807]
[1772083878921,6.9910581,87.459,87.41,10.2959]
[1772083880116,6.9910581,87.459,87.4,10.2971]
[1772083880321,6.9910581,87.459,87.4,13.30491807]
[1772083881722,3.00781807,87.45,87.4,10.2971]
[1772083882814,7.06895235,87.449,87.39,13.30611807]
[1772083883019,7.06895235,87.439,87.38,3.00781807]
[1772083883415,7.06895235,87.429,87.336,228.48]
[1772083883625,7.06895235,87.429,87.316,20.6139]
[1772083883626,7.06895235,87.429,87.326,21.27437119]
[1772083883819,7.06895235,87.419,87.36,3.00781807]
[1772083885027,7.06895235,87.419,87.365,10.3011]
[1772083885226,7.06895235,87.419,87.316,20.6139]
[1772083885227,7.06895235,87.419,87.37,3.00781807]
[1772083885525,7.06895235,87.419,87.375,10.3]
[1772083885728,7.06895235,87.419,87.37,3.00781807]
[1772083885914,7.06895235,87.419,87.36,3.00781807]
[1772083886720,7.06895235,87.419,87.37,10.3006]
[1772083886916,7.06895235,87.419,87.37,13.30841807]
[1772083888638,7.07114871,87.434,87.379,10.2995]
[1772083888829,7.07114871,87.434,87.324,160.3166]
[1772083888830,7.07114871,87.429,87.38,3.00781807]
[1772083890328,7.07114871,87.429,87.393,10.2979]
[1772083892229,7.0653099,87.443,87.402,10.2968]
[1772083892425,11.30494567,87.537,87.411,0.73974179]
[1772083892630,3.00781807,87.47,87.411,0.73974179]
[1772083894521,10.2881,87.477,87.412,10.2957]
[1772083894522,3.00781807,87.46,87.412,10.2957]
[1772083894726,3.89137596,87.459,87.4,3.00781807]
[1772083894931,3.89137596,87.449,87.396,0.77183043]
[1772083895928,3.89137596,87.449,87.4,3.00781807]
[1772083896234,3.89137596,87.449,87.401,0.77183043]
[1772083896432,3.89137596,87.468,87.411,0.74294431]
[1772083896923,3.89137596,87.468,87.42,3.00781807]
[1772083897124,3.89137596,87.468,87.411,0.74294431]
[1772083898029,3.89137596,87.468,87.416,10.2952]
[1772083900335,3.00781807,87.46,87.411,0.74294431]
[1772083900538,3.89137596,87.459,87.411,0.74294431]
[1772083901037,3.89137596,87.459,87.406,10.2964]
[1772083901038,3.89137596,87.459,87.414,0.67784796]
[1772083901631,10.2904,87.457,87.396,0.67784796]
[1772083901836,3.89137596,87.449,87.396,0.67784796]
[1772083902940,3.89137596,87.449,87.4,3.00781807]
[1772083903740,3.89137596,87.449,87.404,0.65772767]
[1772083903936,3.89137596,87.459,87.41,3.66554574]
[1772083904141,3.89137596,87.459,87.42,3.00781807]
[1772083904443,3.89137596,87.459,87.411,0.65772767]
[1772083904943,3.89137596,87.459,87.415,10.2953]
[1772083906140,3.89137596,87.491,87.416,0.55891592]
[1772083906337,3.00781807,87.49,87.43,3.00781807]
[1772083906540,3.89137596,87.479,87.43,3.00781807]
[1772083907338,3.89137596,87.479,87.431,10.2934]
[1772083909942,3.89137596,87.479,87.44,10.2924]
[1772083910241,3.89137596,87.479,87.44,13.30021807]
[1772083910439,34.29,87.554,87.386,160.203]
[1772083910440,3.89137596,87.494,87.45,3.51740453]
[1772083910647,3.00781807,87.51,87.451,0.50993321]
[1772083910846,3.89137596,87.511,87.473,10.2885]
[1772083911040,3.89137596,87.511,87.46,3.00781807]
[1772083911441,3.89137596,87.511,87.472,10.2885]
[1772083911744,3.89137596,87.511,87.461,0.50993321]
[1772083912143,3.89137596,87.528,87.471,0.50993321]
[1772083912338,3.89137596,87.528,87.48,3.00781807]
[1772083912740,3.89137596,87.528,87.491,10.2863]
[1772083912940,3.89137596,87.543,87.491,10.2863]
[1772083914342,3.89137596,87.519,87.465,0.49394327]
[1772083914541,3.89137596,87.519,87.46,3.00781807]
[1772083915041,3.89137596,87.509,87.451,0.44763697]
[1772083915242,3.89137596,87.499,87.451,10.73873697]
[1772083915547,3.89137596,87.499,87.451,10.2911]
[1772083917347,3.89137596,87.499,87.46,10.29]
[1772083918447,3.71027159,87.515,87.46,13.29781807]
[1772083919341,3.71027159,87.515,87.46,10.29]
[1772083919749,3.71027159,87.515,87.466,10.2893]
[1772083920549,3.71027159,87.515,87.446,0.40019912]
[1772083922045,3.71027159,87.515,87.46,0.40019912]
[1772083923047,3.71027159,87.515,87.467,10.2892]
[1772083924358,3.71450361,87.548,87.493,10.2861]
[1772083925448,3.71450361,87.548,87.513,10.2838]
[1772083925647,3.71450361,87.548,87.494,0.38630218]
[1772083925861,3.71450361,87.548,87.481,0.38630218]
[1772083926247,3.71450361,87.548,87.502,10.285]
[1772083926953,3.71450361,87.548,87.495,0.38630218]
[1772083926954,3.73898733,87.563,87.512,10.2839]
[1772083929655,3.73898733,87.563,87.502,10.2851]
[1772083930848,10.2781,87.562,87.502,10.2851]
[1772083931048,3.72486892,87.561,87.502,10.2851]
[1772083931252,3.72486892,87.561,87.495,0.38630218]
[1772083931759,3.72486892,87.559,87.495,0.38630218]
[1772083932457,3.72486892,87.551,87.48,10.65357156]
[1772083932653,3.72486892,87.551,87.481,0.38199528]
[1772083933552,3.71685706,87.549,87.481,0.38199528]
[1772083934356,3.71685706,87.541,87.481,0.38199528]
[1772083935261,3.71685706,87.541,87.482,10.2875]
[1772083935462,3.71685706,87.541,87.483,0.39096009]
[1772083935664,3.71237466,87.556,87.483,0.39096009]
[1772083935865,3.71237466,87.556,87.496,0.39096009]
[1772083936962,3.71237466,87.556,87.509,10.2843]
[1772083938464,3.71237466,87.556,87.511,10.284]
[1772083938762,3.71162262,87.574,87.512,0.39246416]
[1772083939455,3.71162262,87.574,87.525,10.2824]
[1772083939765,3.71162262,87.574,87.512,0.39246416]
[1772083940967,3.71937533,87.57,87.513,10.2837]
[1772083941364,3.71937533,87.559,87.513,10.2837]
[1772083942556,3.71937533,87.559,87.523,10.2826]
[1772083945562,3.6840886,87.569,87.523,10.2826]
[1772083948270,3.78585236,87.599,87.55,3.00590227]
[1772083948574,3.78585236,87.599,87.551,0.44995309]
[1772083950072,3.78585236,87.599,87.553,10.2791]
[1772083951075,3.78585236,87.599,87.491,21.17313856]
[1772083951076,3.78585236,87.589,87.543,10.2803]
[1772083951873,3.78585236,87.589,87.536,0.5750731]
[1772083952069,3.78585236,87.579,87.532,10.2815]
[1772083953174,3.78585236,87.579,87.53,3.00590227]
[1772083953175,3.78585236,87.579,87.537,10.2809]
[1772083953777,3.61935361,87.595,87.546,10.2799]
[1772083954072,3.61935361,87.595,87.551,0.57068713]
[1772083954874,6.60089687,87.61,87.553,0.61940514]
[1772083955279,3.5949946,87.609,87.553,0.61940514]
[1772083955875,3.5949946,87.609,87.555,10.2788]
[1772083957579,3.5949946,87.609,87.555,10.90223933]
[1772083957776,3.5949946,87.609,87.558,10.2784]
[1772083958275,307.97429671,87.64,87.563,0.62343933]
[1772083958276,3.00590227,87.62,87.563,0.62343933]
[1772083958782,3.59265833,87.619,87.563,0.62343933]
[1772083959673,3.59265833,87.619,87.575,0.62407768]
[1772083959877,3.59265833,87.609,87.519,0.62407768]
[1772083960083,5.13793001,87.621,87.531,0.62407768]
[1772083960084,3.59265833,87.589,87.531,0.62407768]
[1772083960278,3.59265833,87.589,87.541,0.62407768]
[1772083961984,3.59265833,87.589,87.546,10.2799]
[1772083962179,3.00590227,87.6,87.55,3.60043194]
[1772083962874,6.61624239,87.6,87.55,3.60043194]
[1772083963479,6.61624239,87.6,87.551,10.2793]
[1772083964485,8.0421195,87.639,87.54,3.00590227]
[1772083964486,3.61034012,87.589,87.54,10.2806]
[1772083964678,3.00590227,87.58,87.54,10.2806]
[1772083964873,3.61034012,87.589,87.54,10.86993758]
[1772083965683,3.61034012,87.589,87.546,10.2799]
[1772083965884,3.61034012,87.589,87.546,10.86923758]
[1772083966084,3.61034012,87.589,87.547,0.58933758]
[1772083966983,3.61034012,87.589,87.549,10.2795]
[1772083967685,3.61034012,87.589,87.549,10.86558524]
[1772083967885,3.00590227,87.6,87.552,10.2792]
[1772083969381,3.00590227,87.6,87.555,10.2788]
[1772083969583,3.61165455,87.603,87.556,0.57605779]
[1772083970483,3.61165455,87.603,87.558,0.57605779]
[1772083970679,3.61826587,87.616,87.561,0.57286259]
[1772083971082,3.61826587,87.616,87.562,0.57286259]
[1772083971787,3.00590227,87.62,87.577,0.57286259]
[1772083972176,3.00590227,87.62,87.578,10.2761]
[1772083972376,6.62416814,87.63,87.581,0.57286259]
[1772083973580,3.61826587,87.63,87.593,10.2744]
[1772083973780,3.6110886,87.639,87.593,10.2744]
[1772083974684,3.60457306,87.629,87.584,0.60024823]
[1772083974886,3.60457306,87.629,87.583,10.2756]
[1772083976188,3.00590227,87.62,87.573,10.874587]
[1772083976787,3.77628792,87.619,87.573,10.874587]
[1772083979387,3.00590227,87.62,87.574,0.64131347]
[1772083979587,3.00590227,87.63,87.578,0.64131347]
[1772083979890,3.77628792,87.629,87.578,0.64131347]
[1772083980086,3.00590227,87.62,87.578,0.64131347]
[1772083981002,3.00590227,87.62,87.511,28.29991067]
[1772083981003,3.77628792,87.599,87.551,0.64267518]
[1772083981192,3.00590227,87.59,87.551,0.64267518]
[1772083981494,3.77628792,87.599,87.551,0.64267518]
[1772083982093,3.77628792,87.599,87.54,3.00590227]
[1772083982390,3.77628792,87.589,87.536,0.64267518]
[1772083982786,3.77628792,87.589,87.543,0.67153095]
[1772083985196,3.77628792,87.589,87.545,10.28]
[1772083988201,3.77628792,87.589,87.545,10.94840953]
[1772083988398,3.77628792,87.589,87.551,10.2793]
[1772083989001,8.04964149,87.659,87.505,20.5693]
[1772083989002,3.77628792,87.603,87.556,0.66538166]
[1772083990001,3.77628792,87.603,87.566,10.2775]
[1772083990900,3.77628792,87.616,87.566,10.2775]
[1772083991203,3.00377929,87.61,87.566,10.2775]
[1772083991404,3.77628792,87.616,87.567,0.68105675]
[1772083992200,3.77628792,87.616,87.571,0.68105675]
[1772083992405,3.77628792,87.629,87.571,0.68105675]
[1772083993294,3.77628792,87.629,87.57,3.00377929]
[1772083993295,3.77628792,87.629,87.579,0.68771666]
[1772083994701,3.77628792,87.629,87.593,10.2743]
[1772083997602,3.77628792,87.629,87.583,10.2756]
[1772083998106,3.77628792,87.629,87.593,10.2744]
[1772084001006,3.77628792,87.642,87.594,0.70785643]
[1772084001909,3.77628792,87.642,87.604,10.2731]
[1772084002510,3.77628792,87.655,87.614,10.272]
[1772084002708,3.77628792,87.655,87.614,0.74456647]
[1772084004003,3.77628792,87.655,87.623,10.2708]
[1772084004206,3.00377929,87.68,87.621,3.67119921]
[1772084005008,3.00377929,87.68,87.632,10.2698]
[1772084005205,10.2632,87.69,87.632,10.2698]
[1772084005404,3.00377929,87.68,87.632,10.2698]
[1772084005907,3.00377929,87.67,87.62,10.2712]
[1772084006108,3.86827019,87.659,87.62,10.2712]
[1772084006905,7.019e-05,87.659,87.629,10.2702]
[1772084007103,3.00377929,87.68,87.63,3.52694967]
[1772084007309,3.00377929,87.67,87.63,3.52694967]
[1772084008008,3.00377929,87.67,87.635,10.2694]
[1772084008209,3.00377929,87.68,87.635,10.2694]
[1772084009016,3.86827019,87.679,87.635,10.2694]
[1772084009205,3.86827019,87.679,87.63,3.52694967]
[1772084009404,3.86827019,87.659,87.625,10.2706]
[1772084009910,3.00377929,87.67,87.625,13.79754967]
[1772084010615,3.00377929,87.67,87.626,3.52694967]
[1772084010916,6.87204948,87.68,87.631,3.52694967]
[1772084011111,6.87204948,87.68,87.639,10.269]
[1772084011307,6.87204948,87.68,87.631,3.52694967]
[1772084011308,3.86827019,87.679,87.631,3.52694967]
[1772084012316,3.86827019,87.679,87.62,3.00377929]
[1772084012317,3.86827019,87.679,87.626,3.52694967]
[1772084012817,3.86827019,87.679,87.633,3.52694967]
[1772084013914,3.86827019,87.679,87.638,10.2691]
[1772084014617,3.86827019,87.679,87.642,10.2687]
[1772084015520,3.86827019,87.679,87.639,3.6238526]
[1772084015721,3.86827019,87.679,87.632,10.2698]
[1772084015919,1.98519093,87.728,87.61,3.00377929]
[1772084015920,3.68779872,87.669,87.61,3.00377929]
[1772084016222,3.68779872,87.649,87.596,3.6238526]
[1772084017914,3.68779872,87.649,87.599,10.2737]
[1772084019418,3.68779872,87.649,87.599,13.8975526]
[1772084020019,3.00377929,87.64,87.599,13.8975526]
[1772084020525,3.00377929,87.64,87.604,10.2731]
[1772084020725,3.68779872,87.649,87.605,3.6238526]
[1772084021020,3.68779872,87.659,87.605,3.6238526]
[1772084022125,3.68779872,87.659,87.611,3.6238526]
[1772084022721,3.68779872,87.659,87.613,10.272]
[1772084025423,3.00377929,87.65,87.611,3.6238526]
[1772084026315,3.68779872,87.659,87.612,3.6238526]
[1772084026516,6.69157801,87.67,87.612,3.6238526]
[1772084027021,3.68779872,87.669,87.612,3.6238526]
[1772084027925,3.00377929,87.66,87.615,10.2718]
[1772084028331,3.00377929,87.66,87.616,3.6238526]
[1772084030021,3.68779872,87.669,87.618,10.2715]
[1772084031227,3.00377929,87.66,87.618,10.2715]
[1772084032427,3.00377929,87.66,87.618,13.8953526]
[1772084032631,3.68779872,87.669,87.618,13.8953526]
[1772084033730,3.68779872,87.669,87.61,3.00377929]
[1772084033929,3.68779872,87.659,87.609,3.6238526]
[1772084034626,3.68779872,87.649,87.6,3.00377929]
[1772084035326,3.68779872,87.649,87.6,6.62763189]
[1772084035525,3.68779872,87.649,87.601,3.6238526]
[1772084035932,3.68779872,87.649,87.602,10.2733]
[1772084036129,3.68779872,87.649,87.603,3.86685679]
[1772084037238,3.86050401,87.664,87.614,3.86685679]
[1772084037439,3.86050401,87.664,87.621,3.86685679]
[1772084038938,3.86050401,87.664,87.621,14.13785679]
[1772084040442,3.86050401,87.664,87.622,3.86685679]
[1772084040643,3.86050401,87.664,87.624,3.86685679]